Cogmind - Beta 13 @@@ ROGUE MODE // 2024.05.04 @ 13:06:42 Player: Pluto Result: Destroyed by AD-IMJ(R) with Subdweller Beam Cannon Performance ------------- Evolutions (0) 0 Regions Visited (2) 400 Robots Destroyed (24) 120 Value Destroyed (445) 445 Prototype IDs (0) 0 Alien Tech Used (0) 0 Bonus (0) 0 TOTAL SCORE: 965 Bonus ------- None Cogmind --------- Core Integrity 0/250 Matter 269/300 Energy 47/100 System Corruption 0% Temperature Cool (9) Movement Walking (190) Ox1 Location -10/Subcaves Parts ------- > --- POWER (1) -------- (None) > --- PROPULSION (2) --- Aluminum Leg Aluminum Leg > --- UTILITY (2) ------ Large Storage Unit > --- WEAPON (2) ------- Beam Cannon Beam Cannon > --- INVENTORY (15) --- Ion Engine Ion Engine Aluminum Leg Aluminum Leg Aluminum Leg Improved Heat Sink Large Storage Unit Improved Terrain Scanner Scrap Shield Particle Gun Grenade Launcher Peak State ------------ > --- POWER ------------ Light Nuclear Core > --- PROPULSION ------- Light Treads Light Treads > --- UTILITY ---------- Small Storage Unit Seismic Detector > --- WEAPON ----------- Medium Laser Particle Gun > --- INVENTORY -------- Ion Engine Ion Engine Aluminum Leg Aluminum Leg Improved Terrain Scanner Seismic Detector EM Pulse Gun Light Assault Rifle [Rating: 11] Favorites ----------- Power Light Nuclear Core Engine Ion Engine Power Core Light Nuclear Core Propulsion Light Treads Treads Light Treads Leg Aluminum Leg Utility Seismic Detector Device Seismic Detector Storage Large Storage Unit Weapon Particle Gun Energy Gun Particle Gun Energy Cannon Beam Cannon Ballistic Gun Light Assault Rifle Build | -11 -10 -10 ------- Run | Yrd Mat Sub Slots Evolved . | . . . Power . | . . . Propulsion . | . . . Utility . | . . . Weapon . | . . . Parts Attached 30 | 8 17 5 Power 4 | 1 3 . Engine 2 | 1 1 . Core 2 | . 2 . Reactor . | . . . Propulsion 12 | 2 9 1 Treads 6 | 2 4 . Leg 6 | . 5 1 Wheel . | . . . Hover . | . . . Flight . | . . . Utility 5 | 3 1 1 Device 3 | 2 . 1 Storage 2 | 1 1 . Processor . | . . . Hackware . | . . . Protection . | . . . Artifact . | . . . Weapon 9 | 2 4 3 Energy Gun 5 | 1 4 . Energy Cannon 2 | . . 2 Ballistic Gun 2 | 1 . 1 Ballistic Cannon . | . . . Launcher . | . . . Special Weapon . | . . . Impact Weapon . | . . . Slashing Weapon . | . . . Piercing Weapon . | . . . Special Melee Weapon . | . . . Unidentified Prototypes . | . . . Parts Lost 7 | . 2 5 Power 2 | . 1 1 Propulsion 2 | . 1 1 Utility 1 | . . 1 Weapon 2 | . . 2 Highest Loss Streak 5 | . 1 5 To Critical Strikes . | . . . Average Slot Usage (%) 98 | . 98 93 Engine 5 | . 4 12 Core 8 | . 9 . Treads 11 | . 12 . Leg 15 | . 14 28 Device 13 | . 14 13 Storage 14 | . 14 14 Energy Gun 24 | . 26 11 Ballistic Gun 2 | . 1 12 Naked Turns . | . . . Heaviest Build 32 | 14 32 32 Greatest Support 40 | 40 40 20 Greatest Overweight (x) 10 | . 10 1 Average Overweight (x) . | . . 1 Largest Inventory Capacity 15 | 8 15 15 Average Capacity 12 | 7 13 15 Most Carried 15 | 6 15 15 Average Carried 10 | 4 11 14 Final Capacity 15 | 8 15 15 Final Carried 15 | 6 15 12 Class Distribution -------------------- 51% | Scavenger-Mutant 48% | Mutant Dominant Class ---------------- Scavenger-Mutant | -10/Materials Scavenger-Mutant | -10/Subcaves Resources | -11 -10 -10 ----------- Run | Yrd Mat Sub Matter Collected 504 | 302 202 . Remotely . | . . . Salvage Created 773 | 231 542 . Parts 59 | 21 38 . Haulers Intercepted 2 | . 2 . Recyclers Shooed . | . . . Parts Field Recycled . | . . . Retrieved Matter . | . . . Parts Self-Destructed 11 | . . 11 Prevented . | . . . Kills | -11 -10 -10 ------- Run | Yrd Mat Sub Combat Hostiles Destroyed 9 | . 9 . Guns 8 | . 8 . Classes Destroyed 6 | 3 3 . Worker 2 | 2 . . Tunneler 8 | 8 . . Hauler 2 | . 2 . Recycler 1 | 1 . . Watcher 2 | . 2 . Grunt 9 | . 9 . Best Kill Streak 6 | 6 2 . Combat Bots Only 2 | . 2 . Max Kills in Single Turn 1 | 1 1 . Gunslinging . | . . . Exploded . | . . . Melee . | . . . Uniques/NPCs Destroyed . | . . . Combat | -11 -10 -10 -------- Run | Yrd Mat Sub Hostile Shots Fired 86 | . 58 28 Missed 24 | . 17 7 Damage Taken 1185 | . 560 625 Core 267 | . 71 196 Absorbed by Shields . | . . . Core Remaining (%) 100 | 100 . . Volleys Fired 69 | 22 42 5 Largest 2 | 2 2 2 Hottest 130 | 70 130 120 Shots Fired 136 | 44 84 8 Gun 132 | 44 84 4 Cannon 4 | . . 4 Launcher . | . . . Special . | . . . Kinetic 33 | 22 9 2 Thermal 103 | 22 75 6 Explosive . | . . . Electromagnetic . | . . . Robot Hit Streak 15 | 7 15 4 Robot Miss Streak 4 | 4 2 3 Penetration Max . | . . . Secondary Targets 1 | . 1 . Max Gunslinging Chain 1 | . 1 . Shots Hit Robots 93 | 25 64 4 Core Hits 38 | 14 23 1 Critical Kills . | . . . Critical Parts Destroyed . | . . . Critical Strikes 7 | 6 1 . Burn 7 | 6 1 . Melee Attacks . | . . . Impact . | . . . Slashing . | . . . Piercing . | . . . Sneak Attacks . | . . . Combat Hostiles . | . . . Follow-up Attacks . | . . . Damage Inflicted 1209 | 295 841 73 Guns 1192 | 295 841 56 Cannons 17 | . . 17 Explosions . | . . . Melee . | . . . Ramming . | . . . Kinetic 181 | 80 63 38 Thermal 1028 | 215 778 35 Explosive . | . . . Electromagnetic . | . . . Impact . | . . . Slashing . | . . . Piercing . | . . . Highest Corruption . | . . . Average Corruption . | . . . Corruption Purged . | . . . Corruption Blocked . | . . . Overload Shots . | . . . Overflow Damage . | . . . Projectiles . | . . . Explosions . | . . . Melee . | . . . Knockbacks . | . . . Impact . | . . . Kinetic . | . . . Secondary . | . . . Self-Inflicted Damage . | . . . Shots . | . . . Rammed . | . . . Targets Rammed . | . . . Kicked . | . . . Crushed . | . . . Highest Temperature 490 | 110 490 25 Average Temperature 123 | 44 150 9 Received Heat Transfer 426 | . 294 132 Effects 3 | . 3 . Shutdowns 2 | . 2 . Matter Decay 1 | . 1 . Siege Activations . | . . . Robots Corrupted . | . . . Combat Hostiles . | . . . Parts Fried . | . . . Impact Corruptions . | . . . Robots Melted 1 | . 1 . Combat Hostiles 1 | . 1 . Parts Melted 11 | 6 5 . Heat Transferred 3293 | 1073 2146 74 Parts Sabotaged . | . . . Parts Stolen . | . . . Parts Stripped . | . . . Power Chain Reactions . | . . . Alert | -11 -10 -10 ------- Run | Yrd Mat Sub Peak Influence 115 | 55 115 . Initial 35 | . 35 . Average 42 | 30 44 . Maximum Alert Level . | . . . Low Security (%) 100 | 100 100 . Level 1 . | . . . Level 2 . | . . . Level 3 . | . . . Level 4 . | . . . Level 5 . | . . . High Security . | . . . Max Security . | . . . Squads Dispatched 3 | . 3 . Investigation 1 | . 1 . Extermination . | . . . Reinforcement 2 | . 2 . Assault . | . . . Garrison . | . . . Intercept . | . . . Searches Triggered . | . . . Construction Impeded . | . . . Haulers Reinforced . | . . . Active Scanning Responses . | . . . Cargo Convoy Interrupts . | . . . Stealth | -11 -10 -10 --------- Run | Yrd Mat Sub Distress Signals 3 | . 3 . Communications Jammed . | . . . Distress Signals . | . . . Times Spotted 29 | . 21 8 Peak Tracking Total 5 | . 5 5 Tactical Retreats 2 | . 2 . Traps | -11 -10 -10 ------- Run | Yrd Mat Sub Traps Triggered 8 | . 6 2 Indirectly . | . . . Trap Hack Attempts . | . . . Triggered . | . . . Disarmed 1 | . 1 . Reprogrammed . | . . . Reused . | . . . Traps Extracted . | . . . Installed . | . . . Triggered . | . . . Machines | -11 -10 -10 ---------- Run | Yrd Mat Sub Machines Disabled . | . . . Max in Single Turn . | . . . Machines Repaired . | . . . Machines Dismantled . | . . . Machines Sabotaged . | . . . Overloaded Fab Kills . | . . . Hacking | -11 -10 -10 --------- Run | Yrd Mat Sub Machines Accessed 7 | . 7 . Terminals 7 | . 7 . Fabricators . | . . . Repair Stations . | . . . Recycling Units . | . . . Scanalyzers . | . . . Garrison Access . | . . . Total Hacks 19 | . 19 . Successful 10 | . 10 . Failed 9 | . 9 . Catastrophic . | . . . Database Lockouts . | . . . Manual 13 | . 13 . Terminals 19 | . 19 . Fabricators . | . . . Repair Stations . | . . . Recycling Units . | . . . Scanalyzers . | . . . Garrison Access . | . . . Terminal Hacks 7 | . 7 . Robot Analysis 1 | . 1 . Emergency Access Points 1 | . 1 . Terminal Index 1 | . 1 . Alert Level 1 | . 1 . Unreport Threat 1 | . 1 . Locate Traps 1 | . 1 . Disarm Traps 1 | . 1 . Fabricator Hacks . | . . . Repair Station Hacks . | . . . Recycling Unit Hacks . | . . . Scanalyzer . | . . . Garrison Access Hacks . | . . . Unauthorized Hacks 3 | . 3 . Terminals 3 | . 3 . Botnet 3 | . 3 . Fabricators . | . . . Repair Stations . | . . . Recycling Units . | . . . Scanalyzers . | . . . Garrison Access . | . . . Data Cores Recovered . | . . . Used . | . . . Hacking Detections 7 | . 7 . Full Trace Events . | . . . Feedback Events . | . . . Feedback Blocked . | . . . Robot Schematics Acquired . | . . . Robots Built . | . . . Authchips . | . . . Time . | . . . Total Robot Build Rating . | . . . Part Schematics Acquired . | . . . Parts Built . | . . . Authchips . | . . . Time . | . . . Total Part Build Rating . | . . . Parts Repaired . | . . . Time . | . . . Parts Recycled . | . . . Recycled Matter . | . . . Retrieved Matter . | . . . Retrieved Components . | . . . Parts Scanalyzed . | . . . Part Schematics Acquired . | . . . Parts Damaged . | . . . Bothacking | -11 -10 -10 ------------ Run | Yrd Mat Sub Used RIF Installer . | . . . Robots Hacked . | . . . Non-combat . | . . . Combat . | . . . Robot Hacks Applied . | . . . Relay Couplers Released . | . . . Fabnet Peak Effective % . | . . . Robots Rewired . | . . . Allies Hacked . | . . . Hacks Repelled . | . . . Allies | -11 -10 -10 -------- Run | Yrd Mat Sub Total Allies . | . . . Largest Group . | . . . Highest-Rated Group . | . . . Highest-Rated Ally . | . . . Total Orders . | . . . Ally Attacks . | . . . Total Damage . | . . . Kills . | . . . Allies Corrupted . | . . . Allies Melted . | . . . Intel | -11 -10 -10 ------- Run | Yrd Mat Sub Robot Analysis Total 1 | . 1 . Derelict Logs Recovered 1 | . . 1 Drone Launches . | . . . Drone Recoveries . | . . . Exploration | -11 -10 -10 ------------- Run | Yrd Mat Sub Turns Passed 1935 | 296 1475 164 Spaces Moved 808 | 136 610 62 Core 8 | 4 4 . Treads 426 | 132 294 . Legs 374 | . 312 62 Wheels . | . . . Hover . | . . . Flight . | . . . Fastest Speed 50 | 50 160 190 Average Speed 176 | 156 179 190 Slowest Speed 550 | 160 550 190 Overloaded Moves . | . . . Propulsion Burnouts . | . . . Robots Hopped . | . . . Cave-ins Triggered . | . . . Exploration Rate (%) 36 | 5 98 5 Regions Visited 2 Branch Regions 1 Pre-discovered Areas . | . . . Known Exits Taken . | . . . Unknown Exits Taken 2 | 1 1 . Scrap Searched . | . . . Spaces Dug . | . . . Terrain Destroyed . | . . . Melee . | . . . Projectile . | . . . AOE . | . . . Terrain Rammed . | . . . Walls Destroyed . | . . . Machines Disabled . | . . . Actions | -11 -10 -10 --------- Run | Yrd Mat Sub Total 1180 | 176 904 100 Wait 244 | 4 216 24 Move 806 | 135 609 62 Hop . | . . . Pick Up 19 | 6 12 1 Fast Attach 17 | 7 9 1 Attach 5 | . 2 3 Detach 1 | . 1 . Swap 8 | 1 6 1 Drop 11 | 1 7 3 Fire 69 | 22 42 5 Melee . | . . . Ram . | . . . Kick . | . . . Crush . | . . . Escape Stasis . | . . . Rewire . | . . . Trap . | . . . Miscellaneous . | . . . Route ------- -11/Scrapyard -10/Materials (discovered 5 exits: [*Mat x3] / [*Min] / [*Sub]) -10/Subcaves History --------- Turn | Location | Event 23 | -11/Scrapyard | Discovered new exit (range 15) 297 | -11/Scrapyard | Entered Materials 317 | -10/Materials | Build established: Mutant 573 | -10/Materials | Discovered new exit (range 15) 833 | -10/Materials | Discovered new exit (range 16) 901 | -10/Materials | Discovered new exit (range 10) 1211 | -10/Materials | Build established: Scavenger-Mutant 1305 | -10/Materials | Discovered new exit (range 10) 1753 | -10/Materials | Discovered new exit (range 11) 1772 | -10/Materials | Entered Subcaves 1774 | -10/Subcaves | Shifting Twisted Machinery released Battle Rifle 1816 | -10/Subcaves | Learned Materials stockpile data 1904 | -10/Subcaves | Ambushed by swarm of Subdwellers 1909 | -10/Subcaves | Core integrity fell below 50% 1921 | -10/Subcaves | Core integrity fell below 20% 1936 | -10/Subcaves | Destroyed by AD-IMJ(R) with Subdweller Beam Cannon Last Messages --------------- 01913_ JM-WGM(R) knocked back. 01913_ RB-F6N(h) destroyed. 01915_ SL-A7W(R) suffers critical hit (Burn). 01915_ SL-A7W(R) affixes Scrap Shield Fragment to Scrap Shield. 01917_ GH-C21(R) emerges from the Twisted Machinery. 01917_ QF-UNC(R) emerges from the Twisted Machinery. 01917_ SL-A7W(R) destroyed. 01917_ ZH-56F(R) suffers critical hit (Burn). 01918_ Ion Engine destroyed. 01919_ ZH-56F(R) affixes Scrap Shield Fragment to Scrap Shield. 01919_ ZH-56F(R) destroyed. 01922_ Seismic Detector destroyed. 01923_ JM-WGM(R) destroyed. 01927_ 89-BG1(g) triggered Shrapnel Trap. 01927_ An expanding cloud of shrapnel blasts out in all directions. 01927_ Battle Rifle destroyed. 01928_ GH-C21(R) affixes Scrap Shield Fragment to Scrap Shield. 01929_ 89-BG1(g) destroyed. 01931_ RJ-ALY(g) destroyed. 01935_ GH-C21(R) affixes Scrap Shield Fragment to Scrap Shield. Map ----- +----------------------------------------------------+ | | | | | | | | | | | | | | | ?????????????????????????????????????????????????? | | ?????????????????????????????????????????????????? | | ?????????????????????????????????????????????????? | | ?????????????????????????????????????????????????? | | ?????????????????????????????????????????????????? | | ?????????????????????????????????????????????????? | | ?????????????????????????????????????????????????? | | ?????????????????????????????????????????????????? | | ?????????????????????????????????????????????????? | | ?????????????????????????????????????????????????? | | ?????????????????????????????????????????????????? | | ?????????????????????????????????????????????????? | | ?????????????????????????????????????????????????? | | ?????????????????????????????###?????????#???????? | | ??????????##?######?????????## ##??????? ##??????? | | ?????###### ## ##??##???## "####### ##?????? | | ?????# ####;#### ##????? | | ????## ;;#; * #????? | | ???? =@ !%! #????? | | ???? ??## [%= ][ & #?????? | | ???? ??## ##### *! ; ; R&&&*% ###?????? | | ?????? ??#^ #???#; =g =&%%%R##???????? | | ???????# #?# ##???##; % !"";#????????? | | ???????# ## ####??####!# ## &%= "##????????? | | ????????# #?????####### !#####?????????? | | ????????## #???????????# ##?????????????? | | ?????????#^ #???????????# ##??????????????? | | ?????????## ##???????????# ##???????????????? | | ?????????# #????????????###????????????????? | | ????????## # ##???????????????????????????????? | | ????????# #????????????????????????????????? | | ????????## # #????????????????????????????????? | | ?????????# #????????????????????????????????? | | ?????????## ##???????????????????????????????? | | ??????????## ##??????????????????????????????? | | ???????????## #??????????????????????????????? | | ??????#######""" #??????????????????????????????? | | ??????# ![ #??????????????????????????????? | | ??????# # # # #??????????????????????????????? | | ??????????### #??????????????????????????????? | | ????????????## =#??????????????????????????????? | | ?????????????###!%#??????????????????????????????? | | ???????????????##%#??????????????????????????????? | +----------------------------------------------------+ Best States ------------- Heat Dissipation 25 Energy Generation 14 Energy Capacity 250 Matter Stores 300 Matter Capacity 300 Sight Range 16 Terrain Scan Density 10 Evasion (%) 40 Recoil Reduction 2 Item Schematics ----------------- None Robot Schematics ------------------ None Fabricated ------------ Nothing Alien Tech Used ----------------- None Achievements -------------- None Challenges ------------ None Game ------ Seed EnergyRestorationHumpback Manual? 0 Play Time 00:20:32 Cumulative 21.5 hours Start 2024.05.04 @ 12:48:17 End 2024.05.04 @ 13:06:42 Sessions 1 Manual Loads 0 Difficulty Rogue Special Mode None Game No. 23 Rogue 23 Adventurer 0 Explorer 0 Win Type - Total 0 Types 0/0/0/0/0/0/0/0/0 Lore% 8 Gallery% 22 Achievement% 20 Wizard Run 0 Options --------- Layout 0 ASCII 0 Keyboard 1 Movement Numpad Keybinds 0 Fullscreen 1 Font 24/Smallcaps Map View 76x50 Zoom Use 0% Tactical HUD 1 Map Filters NONE Filters NONE Steam 1 RUN: b4e3f5ef-8099-42bc-9f14-eaed61f9bacc